[Event "Late-Titled-Tuesday-Blitz-October-24-2023"]
[Site "Chess.com"]
[Date "2023.10.24"]
[Round "4"]
[White "gunslinger222"]
[Black "HaryKane"]
[Result "0-1"]
[WhiteElo "2338"]
[BlackElo "2518"]
[TimeControl "180+1"]
[EndTime "14:36:19 PDT"]
[Termination "HaryKane won by resignation"]

1. d4 {[%clk 0:03:00]} 1... d5 {[%clk 0:02:58.3]} 2. Nf3 {[%clk 0:02:59.3]} 2...
c6 {[%clk 0:02:59]} 3. g3 {[%clk 0:02:58.8]} 3... Nf6 {[%clk 0:02:59.5]} 4. Bg2
{[%clk 0:02:59.6]} 4... e6 {[%clk 0:02:59.8]} 5. O-O {[%clk 0:03:00.3]} 5...
Nbd7 {[%clk 0:03:00.4]} 6. c4 {[%clk 0:03:00.2]} 6... Be7 {[%clk 0:02:59.7]} 7.
b3 {[%clk 0:02:58.7]} 7... O-O {[%clk 0:02:59.7]} 8. Bb2 {[%clk 0:02:59.2]} 8...
b6 {[%clk 0:02:59.9]} 9. Nc3 {[%clk 0:02:58.1]} 9... Bb7 {[%clk 0:03:00.5]} 10.
Qc2 {[%clk 0:02:53.2]} 10... Rc8 {[%clk 0:03:00.7]} 11. Rac1 {[%clk 0:02:51.2]}
11... c5 {[%clk 0:02:59.9]} 12. dxc5 {[%clk 0:02:44]} 12... Bxc5 {[%clk
0:02:54.4]} 13. cxd5 {[%clk 0:02:23.8]} 13... Nxd5 {[%clk 0:02:50.8]} 14. Qb1
{[%clk 0:02:16.5]} 14... Qe7 {[%clk 0:02:30.9]} 15. Nxd5 {[%clk 0:02:02.6]}
15... Bxd5 {[%clk 0:02:29.1]} 16. e4 {[%clk 0:02:03.3]} 16... Bb7 {[%clk
0:02:24.4]} 17. Qd3 {[%clk 0:01:59.2]} 17... Rfd8 {[%clk 0:02:19.9]} 18. Qe2
{[%clk 0:01:58]} 18... e5 {[%clk 0:02:14.5]} 19. Bh3 {[%clk 0:01:51.1]} 19... f6
{[%clk 0:02:08]} 20. Rcd1 {[%clk 0:01:36.1]} 20... Rc7 {[%clk 0:01:59.4]} 21.
Qc4+ {[%clk 0:01:16.8]} 21... Kh8 {[%clk 0:01:57.7]} 22. b4 {[%clk 0:01:16.6]}
22... Bxf2+ {[%clk 0:01:57.5]} 0-1

[Event "Late-Titled-Tuesday-Blitz-October-24-2023"]
[Site "Chess.com"]
[Date "2023.10.24"]
[Round "4"]
[White "ValeriyGrinev"]
[Black "SergioMoralesG"]
[Result "1-0"]
[WhiteElo "2602"]
[BlackElo "2410"]
[TimeControl "180+1"]
[EndTime "14:36:21 PDT"]
[Termination "ValeriyGrinev won by resignation"]

1. c4 {[%clk 0:03:00.9]} 1... Nf6 {[%clk 0:02:58.6]} 2. Nc3 {[%clk 0:03:01.1]}
2... c6 {[%clk 0:02:58.4]} 3. e4 {[%clk 0:03:00.3]} 3... d5 {[%clk 0:02:58.5]}
4. e5 {[%clk 0:02:59.1]} 4... d4 {[%clk 0:02:56.5]} 5. exf6 {[%clk 0:02:57.1]}
5... dxc3 {[%clk 0:02:56.4]} 6. bxc3 {[%clk 0:02:34.3]} 6... exf6 {[%clk
0:02:55]} 7. d4 {[%clk 0:02:33.6]} 7... Bd6 {[%clk 0:02:50.8]} 8. Bd3 {[%clk
0:02:30]} 8... O-O {[%clk 0:02:48.9]} 9. Ne2 {[%clk 0:02:30.3]} 9... c5 {[%clk
0:02:43.1]} 10. O-O {[%clk 0:02:28.8]} 10... Qc7 {[%clk 0:02:21.2]} 11. Ng3
{[%clk 0:02:27.3]} 11... g6 {[%clk 0:02:09.3]} 12. Bh6 {[%clk 0:02:19.6]} 12...
Re8 {[%clk 0:02:08.9]} 13. Re1 {[%clk 0:02:08.8]} 13... Bd7 {[%clk 0:01:44.2]}
14. Qf3 {[%clk 0:02:08.2]} 14... Bxg3 {[%clk 0:01:10.9]} 15. Rxe8+ {[%clk
0:01:56]} 15... Bxe8 {[%clk 0:01:10]} 16. Qxf6 {[%clk 0:01:56.6]} 1-0

[Event "Late-Titled-Tuesday-Blitz-October-24-2023"]
[Site "Chess.com"]
[Date "2023.10.24"]
[Round "4"]
[White "NotFischer"]
[Black "Roedor"]
[Result "1-0"]
[WhiteElo "2256"]
[BlackElo "2438"]
[TimeControl "180+1"]
[EndTime "14:36:57 PDT"]
[Termination "NotFischer won by resignation"]

1. b4 {[%clk 0:03:00.9]} 1... e5 {[%clk 0:02:56.6]} 2. Bb2 {[%clk 0:03:01]} 2...
Bxb4 {[%clk 0:02:55]} 3. Bxe5 {[%clk 0:03:00.8]} 3... Nf6 {[%clk 0:02:55.5]} 4.
c3 {[%clk 0:03:00.7]} 4... Ba5 {[%clk 0:02:53.1]} 5. e3 {[%clk 0:02:58.8]} 5...
d5 {[%clk 0:02:52.2]} 6. Bxf6 {[%clk 0:02:56.4]} 6... Qxf6 {[%clk 0:02:48]} 7.
d4 {[%clk 0:02:56.4]} 7... O-O {[%clk 0:02:43.6]} 8. Bd3 {[%clk 0:02:54.2]} 8...
c5 {[%clk 0:02:43.4]} 9. Ne2 {[%clk 0:02:53]} 9... Nc6 {[%clk 0:02:41.1]} 10.
O-O {[%clk 0:02:43]} 10... Re8 {[%clk 0:02:39]} 11. Nd2 {[%clk 0:02:33.3]} 11...
c4 {[%clk 0:02:37.6]} 12. Bc2 {[%clk 0:02:28.5]} 12... Bc7 {[%clk 0:02:37.7]}
13. Ng3 {[%clk 0:02:21.8]} 13... g6 {[%clk 0:02:31.4]} 14. e4 {[%clk 0:02:16.5]}
14... dxe4 {[%clk 0:02:23.7]} 15. Ndxe4 {[%clk 0:02:15.5]} 15... Qh4 {[%clk
0:02:21.8]} 16. Qf3 {[%clk 0:02:11]} 16... Bg4 {[%clk 0:02:14.5]} 17. Qxg4
{[%clk 0:02:10.5]} 17... Bxg3 {[%clk 0:02:09.5]} 18. hxg3 {[%clk 0:02:06.8]}
18... Qxg4 {[%clk 0:02:08]} 19. Nf6+ {[%clk 0:02:06.4]} 19... Kg7 {[%clk
0:02:08.2]} 20. Nxg4 {[%clk 0:02:07.2]} 20... Re2 {[%clk 0:02:08.8]} 21. Rac1
{[%clk 0:02:02.4]} 21... b5 {[%clk 0:02:07.2]} 22. Rfe1 {[%clk 0:02:00.7]} 22...
Rae8 {[%clk 0:02:07.3]} 23. Kf1 {[%clk 0:01:59]} 23... Rxe1+ {[%clk 0:02:05.4]}
24. Rxe1 {[%clk 0:01:58.5]} 24... Rb8 {[%clk 0:02:05.4]} 25. Ne5 {[%clk
0:01:56.4]} 25... Nd8 {[%clk 0:01:58.7]} 26. Nd7 {[%clk 0:01:54.6]} 26... Rc8
{[%clk 0:01:54.1]} 27. Nc5 {[%clk 0:01:52.6]} 27... Nc6 {[%clk 0:01:52.1]} 28.
Be4 {[%clk 0:01:49.3]} 28... Ne7 {[%clk 0:01:49]} 29. Bf3 {[%clk 0:01:38.8]}
29... Nf5 {[%clk 0:01:48.2]} 30. a4 {[%clk 0:01:30.8]} 30... b4 {[%clk 0:01:48]}
31. cxb4 {[%clk 0:01:26.3]} 31... Nxd4 {[%clk 0:01:48.1]} 32. Rc1 {[%clk
0:01:20.9]} 32... Nb3 {[%clk 0:01:45.5]} 33. Nxb3 {[%clk 0:01:15.1]} 33... cxb3
{[%clk 0:01:45.8]} 34. Rxc8 {[%clk 0:01:14.5]} 34... b2 {[%clk 0:01:46.3]} 35.
Be4 {[%clk 0:01:14.8]} 1-0

[Event "Late-Titled-Tuesday-Blitz-October-24-2023"]
[Site "Chess.com"]
[Date "2023.10.24"]
[Round "4"]
[White "KorolDimitriy75"]
[Black "jactorres"]
[Result "1-0"]
[WhiteElo "2362"]
[BlackElo "2503"]
[TimeControl "180+1"]
[EndTime "14:37:04 PDT"]
[Termination "KorolDimitriy75 won by resignation"]

1. d4 {[%clk 0:03:00.9]} 1... Nf6 {[%clk 0:02:58.7]} 2. c4 {[%clk 0:03:01.1]}
2... e6 {[%clk 0:02:57.5]} 3. Nc3 {[%clk 0:03:01.5]} 3... d5 {[%clk 0:02:57.3]}
4. Bg5 {[%clk 0:03:00.7]} 4... Be7 {[%clk 0:02:57.1]} 5. cxd5 {[%clk 0:03:00.9]}
5... exd5 {[%clk 0:02:57.2]} 6. e3 {[%clk 0:03:01.1]} 6... O-O {[%clk
0:02:56.7]} 7. Bd3 {[%clk 0:03:01.2]} 7... c6 {[%clk 0:02:54.3]} 8. Qc2 {[%clk
0:03:00.6]} 8... Nbd7 {[%clk 0:02:47.4]} 9. Nge2 {[%clk 0:02:59.5]} 9... Re8
{[%clk 0:02:44]} 10. f3 {[%clk 0:02:58.7]} 10... Nf8 {[%clk 0:02:40.2]} 11. O-O
{[%clk 0:02:58.7]} 11... Be6 {[%clk 0:02:07.8]} 12. Rad1 {[%clk 0:02:58.2]}
12... Rc8 {[%clk 0:02:05.1]} 13. e4 {[%clk 0:02:46.6]} 13... c5 {[%clk
0:01:52.1]} 14. e5 {[%clk 0:02:36.4]} 14... N6d7 {[%clk 0:01:35.3]} 15. Bxe7
{[%clk 0:02:33.5]} 15... Qxe7 {[%clk 0:01:30.9]} 16. f4 {[%clk 0:02:31.4]} 16...
cxd4 {[%clk 0:01:29.3]} 17. Nxd4 {[%clk 0:02:30.2]} 17... Qc5 {[%clk 0:01:27.5]}
18. Qf2 {[%clk 0:02:23.2]} 18... Bg4 {[%clk 0:01:16.8]} 19. Rde1 {[%clk
0:02:18.1]} 19... Ne6 {[%clk 0:00:58]} 20. Ndb5 {[%clk 0:02:03.8]} 20... a6
{[%clk 0:00:47.6]} 21. Nd6 {[%clk 0:02:02.2]} 1-0

[Event "Late-Titled-Tuesday-Blitz-October-24-2023"]
[Site "Chess.com"]
[Date "2023.10.24"]
[Round "4"]
[White "midedu"]
[Black "emiliochess"]
[Result "1-0"]
[WhiteElo "2068"]
[BlackElo "2302"]
[TimeControl "180+1"]
[EndTime "14:37:04 PDT"]
[Termination "midedu won by resignation"]

1. e4 {[%clk 0:03:00.9]} 1... c5 {[%clk 0:00:37.9]} 2. Nc3 {[%clk 0:02:59]} 2...
e6 {[%clk 0:00:37.9]} 3. g3 {[%clk 0:02:59.6]} 3... g6 {[%clk 0:00:38.1]} 4. Bg2
{[%clk 0:03:00.2]} 4... Bg7 {[%clk 0:00:39]} 5. Nge2 {[%clk 0:03:00.6]} 5... Ne7
{[%clk 0:00:39.9]} 6. d4 {[%clk 0:03:00.7]} 6... O-O {[%clk 0:00:40.8]} 7. dxc5
{[%clk 0:02:59.4]} 7... Qc7 {[%clk 0:00:41.4]} 8. Be3 {[%clk 0:02:58.9]} 8... b6
{[%clk 0:00:39.1]} 9. cxb6 {[%clk 0:02:57.8]} 9... axb6 {[%clk 0:00:40]} 10. O-O
{[%clk 0:02:57.5]} 10... Bb7 {[%clk 0:00:40.4]} 11. a3 {[%clk 0:02:55.3]} 11...
Nbc6 {[%clk 0:00:40.3]} 12. Rc1 {[%clk 0:02:54.6]} 12... Rfd8 {[%clk 0:00:37.8]}
13. f4 {[%clk 0:02:52.6]} 13... d5 {[%clk 0:00:37.9]} 14. exd5 {[%clk
0:02:51.4]} 14... Nxd5 {[%clk 0:00:38.8]} 15. Nxd5 {[%clk 0:02:51.3]} 15... exd5
{[%clk 0:00:39.7]} 16. Nd4 {[%clk 0:02:50.8]} 16... Re8 {[%clk 0:00:32.6]} 17.
Bf2 {[%clk 0:02:50.7]} 17... Ba6 {[%clk 0:00:32.4]} 18. Nxc6 {[%clk 0:02:37]}
18... Bxf1 {[%clk 0:00:31.6]} 19. Kxf1 {[%clk 0:02:36.3]} 19... Qxc6 {[%clk
0:00:30.8]} 20. Bxd5 {[%clk 0:02:34.2]} 20... Qb5+ {[%clk 0:00:26.2]} 21. c4
{[%clk 0:02:32.2]} 21... Qxb2 {[%clk 0:00:26.4]} 22. Bxa8 {[%clk 0:02:31.7]}
22... Rxa8 {[%clk 0:00:26.8]} 23. Rb1 {[%clk 0:02:24.8]} 23... Qxa3 {[%clk
0:00:26.1]} 24. Rxb6 {[%clk 0:02:24.5]} 24... Qc3 {[%clk 0:00:24.9]} 25. Qb3
{[%clk 0:02:14.7]} 25... Ra1+ {[%clk 0:00:20.3]} 26. Kg2 {[%clk 0:02:14.7]}
26... Qd3 {[%clk 0:00:20.3]} 27. Qxd3 {[%clk 0:02:13.1]} 1-0

[Event "Late-Titled-Tuesday-Blitz-October-24-2023"]
[Site "Chess.com"]
[Date "2023.10.24"]
[Round "4"]
[White "Sanyura"]
[Black "Atanejhad"]
[Result "1-0"]
[WhiteElo "2611"]
[BlackElo "2384"]
[TimeControl "180+1"]
[EndTime "14:37:15 PDT"]
[Termination "Sanyura won by resignation"]

1. Nf3 {[%clk 0:02:48]} 1... Nf6 {[%clk 0:02:58.8]} 2. g3 {[%clk 0:02:48.9]}
2... g6 {[%clk 0:02:59]} 3. Bg2 {[%clk 0:02:49.8]} 3... Bg7 {[%clk 0:02:59.3]}
4. O-O {[%clk 0:02:50.7]} 4... O-O {[%clk 0:02:59.5]} 5. d4 {[%clk 0:02:51.6]}
5... d6 {[%clk 0:02:59.6]} 6. c4 {[%clk 0:02:52.5]} 6... Nbd7 {[%clk 0:02:58.7]}
7. Nc3 {[%clk 0:02:53.4]} 7... e5 {[%clk 0:02:58.6]} 8. dxe5 {[%clk 0:02:54.3]}
8... dxe5 {[%clk 0:02:56.7]} 9. Bg5 {[%clk 0:02:53]} 9... Re8 {[%clk 0:02:48.4]}
10. Qc2 {[%clk 0:02:49.5]} 10... h6 {[%clk 0:02:46.2]} 11. Bxf6 {[%clk
0:02:48.9]} 11... Nxf6 {[%clk 0:02:45.3]} 12. Rad1 {[%clk 0:02:48.9]} 12... Qe7
{[%clk 0:02:45]} 13. Nd5 {[%clk 0:02:40.1]} 13... Nxd5 {[%clk 0:02:33.1]} 14.
cxd5 {[%clk 0:02:41]} 14... Qd6 {[%clk 0:02:30.7]} 15. Rc1 {[%clk 0:02:36.9]}
15... Re7 {[%clk 0:02:29.2]} 16. Nd2 {[%clk 0:02:31.2]} 16... Bf5 {[%clk
0:02:23.7]} 17. e4 {[%clk 0:02:30.6]} 17... Bg4 {[%clk 0:02:12.5]} 18. h3 {[%clk
0:02:29.9]} 18... Bc8 {[%clk 0:02:12.3]} 19. Nc4 {[%clk 0:02:30]} 19... Qa6
{[%clk 0:02:01.3]} 20. Rfd1 {[%clk 0:02:26.2]} 20... Bd7 {[%clk 0:01:49.2]} 21.
Bf1 {[%clk 0:02:05.1]} 21... Qf6 {[%clk 0:01:27.9]} 22. d6 {[%clk 0:02:04.5]}
22... cxd6 {[%clk 0:01:27.9]} 23. Rxd6 {[%clk 0:02:05.2]} 23... Qg5 {[%clk
0:01:26.7]} 24. h4 {[%clk 0:02:01.8]} 24... Qh5 {[%clk 0:01:21.2]} 25. Rxd7
{[%clk 0:02:01.4]} 25... Rxd7 {[%clk 0:01:03.8]} 26. Be2 {[%clk 0:02:01.4]}
26... Rc8 {[%clk 0:00:59]} 27. Bxh5 {[%clk 0:02:01.1]} 27... gxh5 {[%clk
0:00:59.1]} 28. Qb1 {[%clk 0:01:57.7]} 28... Rdc7 {[%clk 0:00:58.5]} 29. Rc3
{[%clk 0:01:51.1]} 29... Rd7 {[%clk 0:00:47.6]} 30. Ne3 {[%clk 0:01:50.2]} 1-0

[Event "Late-Titled-Tuesday-Blitz-October-24-2023"]
[Site "Chess.com"]
[Date "2023.10.24"]
[Round "4"]
[White "dodoucb"]
[Black "Beca95"]
[Result "0-1"]
[WhiteElo "2607"]
[BlackElo "2918"]
[TimeControl "180+1"]
[EndTime "14:37:25 PDT"]
[Termination "Beca95 won by resignation"]

1. d4 {[%clk 0:02:59.5]} 1... Nf6 {[%clk 0:02:59.6]} 2. Nf3 {[%clk 0:02:59.1]}
2... e6 {[%clk 0:02:56.8]} 3. c4 {[%clk 0:02:56.8]} 3... c5 {[%clk 0:02:56.5]}
4. d5 {[%clk 0:02:56.4]} 4... d6 {[%clk 0:02:57]} 5. Nc3 {[%clk 0:02:55.8]} 5...
exd5 {[%clk 0:02:57.6]} 6. cxd5 {[%clk 0:02:55.6]} 6... g6 {[%clk 0:02:58.2]} 7.
a4 {[%clk 0:02:55.7]} 7... Bg7 {[%clk 0:02:58.2]} 8. e4 {[%clk 0:02:56.3]} 8...
O-O {[%clk 0:02:53.8]} 9. Nd2 {[%clk 0:02:56.1]} 9... Re8 {[%clk 0:02:52.8]} 10.
Be2 {[%clk 0:02:56.3]} 10... Na6 {[%clk 0:02:46.9]} 11. O-O {[%clk 0:02:54.7]}
11... Nc7 {[%clk 0:02:41.3]} 12. f3 {[%clk 0:02:48.4]} 12... b6 {[%clk
0:02:41.3]} 13. Nc4 {[%clk 0:02:47.5]} 13... Ba6 {[%clk 0:02:41.5]} 14. Bf4
{[%clk 0:02:44.9]} 14... Bxc4 {[%clk 0:02:40.8]} 15. Bxc4 {[%clk 0:02:44.6]}
15... a6 {[%clk 0:02:41.4]} 16. Qd2 {[%clk 0:02:36.6]} 16... Rb8 {[%clk
0:02:33.1]} 17. Qd3 {[%clk 0:01:49.6]} 17... Nh5 {[%clk 0:02:21.2]} 18. Be3
{[%clk 0:01:49.2]} 18... Qc8 {[%clk 0:02:20.2]} 19. Rae1 {[%clk 0:01:26.1]}
19... Qb7 {[%clk 0:02:18.3]} 20. g4 {[%clk 0:01:11.3]} 20... Nf6 {[%clk
0:02:17.7]} 21. Ba2 {[%clk 0:00:48.2]} 21... b5 {[%clk 0:02:16]} 22. axb5 {[%clk
0:00:46.1]} 22... axb5 {[%clk 0:02:15.5]} 23. h3 {[%clk 0:00:21.1]} 23... Nd7
{[%clk 0:02:10.5]} 24. f4 {[%clk 0:00:20.3]} 24... c4 {[%clk 0:02:09.7]} 25. Qd2
{[%clk 0:00:17.5]} 25... b4 {[%clk 0:02:09.2]} 26. Nd1 {[%clk 0:00:15.5]} 26...
Rxe4 {[%clk 0:02:05.9]} 27. Bb1 {[%clk 0:00:16]} 27... Ree8 {[%clk 0:02:04.4]}
28. Bd4 {[%clk 0:00:15.9]} 28... Qxd5 {[%clk 0:02:03.1]} 0-1

[Event "Late-Titled-Tuesday-Blitz-October-24-2023"]
[Site "Chess.com"]
[Date "2023.10.24"]
[Round "4"]
[White "rockstar0902"]
[Black "Willi_Skibbe"]
[Result "1-0"]
[WhiteElo "2627"]
[BlackElo "2233"]
[TimeControl "180+1"]
[EndTime "14:37:53 PDT"]
[Termination "rockstar0902 won by resignation"]

1. c4 {[%clk 0:03:00.9]} 1... e6 {[%clk 0:02:58]} 2. Nc3 {[%clk 0:02:58.7]} 2...
d5 {[%clk 0:02:56.2]} 3. d4 {[%clk 0:02:58.9]} 3... Nf6 {[%clk 0:02:52.7]} 4.
cxd5 {[%clk 0:02:59.1]} 4... exd5 {[%clk 0:02:50.8]} 5. Bg5 {[%clk 0:02:58.6]}
5... Be7 {[%clk 0:02:48.8]} 6. e3 {[%clk 0:02:58.2]} 6... h6 {[%clk 0:02:48.4]}
7. Bh4 {[%clk 0:02:57.9]} 7... O-O {[%clk 0:02:35.7]} 8. Bd3 {[%clk 0:02:53.1]}
8... Re8 {[%clk 0:02:26.8]} 9. Qc2 {[%clk 0:02:46.8]} 9... c6 {[%clk 0:02:23.6]}
10. Nge2 {[%clk 0:02:46.4]} 10... Nbd7 {[%clk 0:02:22.6]} 11. O-O {[%clk
0:02:44.3]} 11... Nh5 {[%clk 0:02:22.5]} 12. Bxe7 {[%clk 0:02:43.7]} 12... Qxe7
{[%clk 0:02:23.4]} 13. Rae1 {[%clk 0:02:42.3]} 13... Nb6 {[%clk 0:02:23.5]} 14.
Nc1 {[%clk 0:02:41.7]} 14... Bd7 {[%clk 0:02:23.5]} 15. Nb3 {[%clk 0:02:41]}
15... Nc8 {[%clk 0:01:57.1]} 16. e4 {[%clk 0:02:12.5]} 16... dxe4 {[%clk
0:01:52.8]} 17. Nxe4 {[%clk 0:02:10.1]} 17... Be6 {[%clk 0:01:35.1]} 18. Nbc5
{[%clk 0:02:08.1]} 18... Nf4 {[%clk 0:01:32.6]} 19. Ng3 {[%clk 0:02:01.1]} 19...
Nd6 {[%clk 0:01:15.1]} 20. Re3 {[%clk 0:01:37]} 20... b6 {[%clk 0:01:06.4]} 21.
Nxe6 {[%clk 0:01:34]} 21... Nxe6 {[%clk 0:01:06.4]} 22. Qxc6 {[%clk 0:01:21.3]}
22... Nxd4 {[%clk 0:00:58.1]} 23. Qxa8 {[%clk 0:01:05.6]} 1-0

[Event "Late-Titled-Tuesday-Blitz-October-24-2023"]
[Site "Chess.com"]
[Date "2023.10.24"]
[Round "4"]
[White "alexrustemov"]
[Black "SpeedofLight0"]
[Result "1-0"]
[WhiteElo "2797"]
[BlackElo "2981"]
[TimeControl "180+1"]
[EndTime "14:37:55 PDT"]
[Termination "alexrustemov won by resignation"]

1. d4 {[%clk 0:03:00.9]} 1... Nf6 {[%clk 0:02:59.6]} 2. c4 {[%clk 0:03:01.3]}
2... e6 {[%clk 0:02:56.2]} 3. Nf3 {[%clk 0:03:01.7]} 3... d5 {[%clk 0:02:55.7]}
4. Nc3 {[%clk 0:03:01.7]} 4... c6 {[%clk 0:02:53.3]} 5. e3 {[%clk 0:03:01.6]}
5... Nbd7 {[%clk 0:02:53.2]} 6. Qc2 {[%clk 0:03:02]} 6... Bd6 {[%clk 0:02:52.8]}
7. b3 {[%clk 0:03:01.9]} 7... O-O {[%clk 0:02:52.9]} 8. Be2 {[%clk 0:03:02.5]}
8... e5 {[%clk 0:02:53.2]} 9. cxd5 {[%clk 0:03:00.7]} 9... cxd5 {[%clk
0:02:54.1]} 10. Nb5 {[%clk 0:03:00.8]} 10... Bb4+ {[%clk 0:02:54.8]} 11. Bd2
{[%clk 0:03:01.3]} 11... Bxd2+ {[%clk 0:02:55.5]} 12. Nxd2 {[%clk 0:03:00.6]}
12... a6 {[%clk 0:02:55.8]} 13. dxe5 {[%clk 0:03:01.1]} 13... Nxe5 {[%clk
0:02:56.5]} 14. Nd4 {[%clk 0:03:01.5]} 14... Bg4 {[%clk 0:02:56.9]} 15. f3
{[%clk 0:03:02]} 15... Bh5 {[%clk 0:02:56.2]} 16. Kf2 {[%clk 0:02:59.7]} 16...
Bg6 {[%clk 0:02:55.7]} 17. Qb2 {[%clk 0:02:57.9]} 17... Re8 {[%clk 0:02:48]} 18.
Rhd1 {[%clk 0:02:55.2]} 18... Nfd7 {[%clk 0:02:44.1]} 19. Nf1 {[%clk 0:02:51.8]}
19... Nc5 {[%clk 0:02:43.3]} 20. Kg1 {[%clk 0:02:42.6]} 20... h5 {[%clk
0:02:41.2]} 21. Qd2 {[%clk 0:02:35.2]} 21... h4 {[%clk 0:02:40.6]} 22. Rac1
{[%clk 0:02:33.3]} 22... Rc8 {[%clk 0:02:39.8]} 23. Rc3 {[%clk 0:02:30.6]} 23...
h3 {[%clk 0:02:37.9]} 24. g3 {[%clk 0:02:27]} 24... Ncd7 {[%clk 0:01:37.8]} 25.
Rxc8 {[%clk 0:02:24.3]} 25... Qxc8 {[%clk 0:01:38.7]} 26. Rc1 {[%clk 0:02:24.4]}
26... Qd8 {[%clk 0:01:37.7]} 27. Qc3 {[%clk 0:02:23.4]} 27... Nf8 {[%clk
0:01:27.2]} 28. Qc7 {[%clk 0:02:19.6]} 28... Qf6 {[%clk 0:01:25.5]} 29. Qxb7
{[%clk 0:02:11.6]} 29... Ne6 {[%clk 0:01:25.2]} 30. Qxd5 {[%clk 0:01:50.3]}
30... Rd8 {[%clk 0:01:22.5]} 31. Qb7 {[%clk 0:01:39.1]} 31... Rxd4 {[%clk
0:01:11.4]} 32. exd4 {[%clk 0:01:33.6]} 32... Nxd4 {[%clk 0:01:12.3]} 33. Qc8+
{[%clk 0:01:29.7]} 33... Kh7 {[%clk 0:01:05.3]} 34. Qxh3+ {[%clk 0:01:30.2]}
34... Bh5 {[%clk 0:01:01.4]} 35. Qxh5+ {[%clk 0:01:28.9]} 35... Qh6 {[%clk
0:01:01.1]} 36. Qxh6+ {[%clk 0:01:28.7]} 36... Kxh6 {[%clk 0:01:00.6]} 37. Kf2
{[%clk 0:01:27.7]} 37... Ndxf3 {[%clk 0:01:00]} 38. Rc5 {[%clk 0:01:18]} 38...
Nd7 {[%clk 0:00:53.4]} 39. Rc6+ {[%clk 0:01:15.8]} 1-0

[Event "Late-Titled-Tuesday-Blitz-October-24-2023"]
[Site "Chess.com"]
[Date "2023.10.24"]
[Round "4"]
[White "rikchessmx"]
[Black "Maluco_do_Natal_00"]
[Result "1-0"]
[WhiteElo "2277"]
[BlackElo "2021"]
[TimeControl "180+1"]
[EndTime "14:37:59 PDT"]
[Termination "rikchessmx won on time"]

1. e4 {[%clk 0:03:00.9]} 1... c5 {[%clk 0:02:57.1]} 2. Nf3 {[%clk 0:02:58.2]}
2... Nc6 {[%clk 0:02:57.3]} 3. d4 {[%clk 0:02:59.1]} 3... cxd4 {[%clk 0:02:58]}
4. Nxd4 {[%clk 0:02:59.5]} 4... Nf6 {[%clk 0:02:58.6]} 5. Nxc6 {[%clk
0:03:00.1]} 5... bxc6 {[%clk 0:02:58.1]} 6. Bd3 {[%clk 0:03:00.9]} 6... g6
{[%clk 0:02:55]} 7. O-O {[%clk 0:03:00.7]} 7... Qc7 {[%clk 0:02:54]} 8. f4
{[%clk 0:02:45.6]} 8... d6 {[%clk 0:02:53.8]} 9. Kh1 {[%clk 0:02:39.2]} 9... Bg7
{[%clk 0:02:50]} 10. Nc3 {[%clk 0:02:38.8]} 10... O-O {[%clk 0:02:44.8]} 11. Qe1
{[%clk 0:02:38.5]} 11... Nd7 {[%clk 0:02:32.5]} 12. Qh4 {[%clk 0:02:37.2]} 12...
Nc5 {[%clk 0:02:31]} 13. f5 {[%clk 0:02:36]} 13... Rb8 {[%clk 0:02:11.6]} 14.
Bh6 {[%clk 0:02:25.2]} 14... Rxb2 {[%clk 0:01:51.9]} 15. Bxg7 {[%clk 0:02:24.7]}
15... Kxg7 {[%clk 0:01:51.5]} 16. f6+ {[%clk 0:02:24.8]} 16... exf6 {[%clk
0:01:48]} 17. Nd5 {[%clk 0:02:24.9]} 17... cxd5 {[%clk 0:01:14.6]} 18. Qxf6+
{[%clk 0:02:24.1]} 18... Kg8 {[%clk 0:01:14.3]} 19. Qxb2 {[%clk 0:02:22]} 19...
dxe4 {[%clk 0:01:11.6]} 20. Be2 {[%clk 0:02:22]} 20... Be6 {[%clk 0:00:53.2]}
21. Qd4 {[%clk 0:02:20.5]} 21... d5 {[%clk 0:00:27.3]} 22. c4 {[%clk 0:02:18.2]}
22... Rd8 {[%clk 0:00:12.6]} 23. cxd5 {[%clk 0:02:17.2]} 23... Rxd5 {[%clk
0:00:12.4]} 24. Qc3 {[%clk 0:02:16]} 24... Qd6 {[%clk 0:00:10.3]} 25. Rab1
{[%clk 0:02:06.5]} 25... Nd3 {[%clk 0:00:09.4]} 26. h3 {[%clk 0:01:58.4]} 26...
Rc5 {[%clk 0:00:04.8]} 27. Qa3 {[%clk 0:01:52.4]} 27... Kg7 {[%clk 0:00:02.9]}
28. Qxa7 {[%clk 0:01:50.4]} 28... Qd4 {[%clk 0:00:01.4]} 29. Bg4 {[%clk
0:01:43.5]} 1-0

[Event "Late-Titled-Tuesday-Blitz-October-24-2023"]
[Site "Chess.com"]
[Date "2023.10.24"]
[Round "4"]
[White "TanitoluwaAps116"]
[Black "ShahxaibKhan"]
[Result "1-0"]
[WhiteElo "2646"]
[BlackElo "2432"]
[TimeControl "180+1"]
[EndTime "14:38:02 PDT"]
[Termination "TanitoluwaAps116 won by resignation"]

1. e4 {[%clk 0:02:48.4]} 1... d5 {[%clk 0:02:58.8]} 2. exd5 {[%clk 0:02:47.4]}
2... Nf6 {[%clk 0:02:59.2]} 3. d4 {[%clk 0:02:44.4]} 3... Nxd5 {[%clk
0:02:58.4]} 4. Nf3 {[%clk 0:02:44.6]} 4... g6 {[%clk 0:02:58.1]} 5. Bd3 {[%clk
0:02:45.2]} 5... Bg7 {[%clk 0:02:58.6]} 6. O-O {[%clk 0:02:45.9]} 6... O-O
{[%clk 0:02:57.7]} 7. Re1 {[%clk 0:02:46]} 7... Nb4 {[%clk 0:02:56.3]} 8. Bc4
{[%clk 0:02:43.5]} 8... a6 {[%clk 0:02:54.7]} 9. c3 {[%clk 0:02:43.4]} 9... Nd5
{[%clk 0:02:53.4]} 10. Bg5 {[%clk 0:02:41.9]} 10... Nf6 {[%clk 0:02:48.7]} 11.
Qe2 {[%clk 0:02:39.7]} 11... b5 {[%clk 0:02:46.7]} 12. Bb3 {[%clk 0:02:36]}
12... e6 {[%clk 0:02:42.2]} 13. Nbd2 {[%clk 0:02:33.4]} 13... Bb7 {[%clk
0:02:40.2]} 14. a4 {[%clk 0:02:32.3]} 14... Qd7 {[%clk 0:02:36.8]} 15. Ne5
{[%clk 0:02:28.3]} 15... Qe8 {[%clk 0:02:36.1]} 16. axb5 {[%clk 0:02:19.3]}
16... axb5 {[%clk 0:02:33.1]} 17. Rxa8 {[%clk 0:02:19.5]} 17... Bxa8 {[%clk
0:02:34]} 18. h4 {[%clk 0:01:53.5]} 18... h6 {[%clk 0:02:30.6]} 19. Bxf6 {[%clk
0:01:45.5]} 19... Bxf6 {[%clk 0:02:29.8]} 20. Qg4 {[%clk 0:01:37.4]} 20... Nd7
{[%clk 0:02:14.5]} 21. Nxg6 {[%clk 0:01:13.1]} 21... fxg6 {[%clk 0:01:47.6]} 22.
Rxe6 {[%clk 0:01:11.1]} 22... Qf7 {[%clk 0:00:28.3]} 23. Rxf6 {[%clk 0:01:05.8]}
23... Nxf6 {[%clk 0:00:27.9]} 24. Qxg6+ {[%clk 0:01:05]} 24... Kh8 {[%clk
0:00:27.8]} 25. Bxf7 {[%clk 0:01:05.6]} 1-0